[Event "Titled Tuesday Blitz May 2 Late 2023"]
[White "Leiva, Gianmarco"]
[Black "Bortnyk, Olexandr"]
[WhiteFideId "3804399"]
[BlackFideId "14120828"]
[WhiteElo "2345"]
[BlackElo "2734"]
[Result "0-1"]
[Round "07"]
[TimeControl "180+2"]
[Date "2023.05.02"]
[WhiteClock "0:00:11"]
[BlackClock "0:00:05"]

1. d4 {[%clk 0:02:59]}  d6 {[%clk 0:03:00]} 2. Nf3 {[%clk 0:02:56]}  Nf6 {[%clk 0:02:59]} 3. Nc3 {[%clk 0:02:54]}  Nbd7 {[%clk 0:02:57]} 4. Bf4 {[%clk 0:02:46]}  c6 {[%clk 0:02:49]} 5. e4 {[%clk 0:02:44]}  Qa5 {[%clk 0:02:48]} 6. a3 {[%clk 0:02:33]}  Nxe4 {[%clk 0:02:46]} 7. Bd3 {[%clk 0:02:23]}  Nxc3 {[%clk 0:02:41]} 8. Qd2 {[%clk 0:02:23]}  e5 {[%clk 0:02:37]} 9. Be3 {[%clk 0:02:16]}  Nf6 {[%clk 0:02:20]} 10. Bg5 {[%clk 0:01:54]}  e4 {[%clk 0:02:14]} 11. Bxf6 {[%clk 0:01:49]}  exd3 {[%clk 0:01:24]} 12. Bh4 {[%clk 0:01:45]}  dxc2 {[%clk 0:01:14]} 13. O-O {[%clk 0:01:44]}  Bg4 {[%clk 0:00:57]} 14. Rfe1+ {[%clk 0:01:20]}  Kd7 {[%clk 0:00:56]} 15. bxc3 {[%clk 0:01:13]}  Bxf3 {[%clk 0:00:54]} 16. gxf3 {[%clk 0:01:14]}  Qf5 {[%clk 0:00:54]} 17. Re4 {[%clk 0:01:12]}  d5 {[%clk 0:00:52]} 18. Rf4 {[%clk 0:01:10]}  Qg6+ {[%clk 0:00:48]} 19. Rg4 {[%clk 0:01:10]}  Qf5 {[%clk 0:00:45]} 20. Rf4 {[%clk 0:01:10]}  Qh5 {[%clk 0:00:45]} 21. Qxc2 {[%clk 0:01:06]}  Qg6+ {[%clk 0:00:40]} 22. Qxg6 {[%clk 0:01:03]}  hxg6 {[%clk 0:00:22]} 23. Rxf7+ {[%clk 0:00:38]}  Ke6 {[%clk 0:00:23]} 24. Re7+ {[%clk 0:00:37]}  Bxe7 {[%clk 0:00:20]} 25. Re1+ {[%clk 0:00:38]}  Kf7 {[%clk 0:00:18]} 26. Rxe7+ {[%clk 0:00:38]}  Kf8 {[%clk 0:00:18]} 27. Bg5 {[%clk 0:00:37]}  Rh5 {[%clk 0:00:18]} 28. Re5 {[%clk 0:00:34]}  Re8 {[%clk 0:00:18]} 29. Rxe8+ {[%clk 0:00:29]}  Kxe8 {[%clk 0:00:18]} 30. h4 {[%clk 0:00:30]}  Kf7 {[%clk 0:00:16]} 31. Kg2 {[%clk 0:00:27]}  Ke6 {[%clk 0:00:17]} 32. Kg3 {[%clk 0:00:27]}  Kf5 {[%clk 0:00:17]} 33. Be7 {[%clk 0:00:22]}  Rh8 {[%clk 0:00:15]} 34. Bd6 {[%clk 0:00:20]}  Re8 {[%clk 0:00:14]} 35. Be5 {[%clk 0:00:20]}  Re7 {[%clk 0:00:14]} 36. f4 {[%clk 0:00:19]}  b6 {[%clk 0:00:14]} 37. f3 {[%clk 0:00:16]}  a5 {[%clk 0:00:11]} 38. Kf2 {[%clk 0:00:16]}  c5 {[%clk 0:00:10]} 39. Ke3 {[%clk 0:00:16]}  c4 {[%clk 0:00:10]} 40. Kf2 {[%clk 0:00:14]}  b5 {[%clk 0:00:10]} 41. Bd6 {[%clk 0:00:14]}  Rb7 {[%clk 0:00:08]} 42. Bf8 {[%clk 0:00:13]}  Rb8 {[%clk 0:00:05]} 43. Bd6 {[%clk 0:00:14]}  Rh8 {[%clk 0:00:05]} 44. Kg3 {[%clk 0:00:12]}  Re8 {[%clk 0:00:03]} 45. Be5 {[%clk 0:00:12]}  b4 {[%clk 0:00:04]} 46. axb4 {[%clk 0:00:11]}  axb4 {[%clk 0:00:04]} 47. cxb4 {[%clk 0:00:11]}  c3 {[%clk 0:00:05]} 0-1


[Site "https://www.chess.com"]

[Event "Titled Tuesday Blitz May 2 Late 2023"]
[White "Mekhitarian, Krikor Sevag"]
[Black "Mortazavi, Ali"]
[WhiteFideId "2107660"]
[BlackFideId "401323"]
[WhiteElo "2604"]
[BlackElo "2339"]
[Result "1-0"]
[Round "07"]
[TimeControl "180+2"]
[Date "2023.05.02"]
[WhiteClock "0:00:09"]
[BlackClock "0:00:02"]

1. Nf3 {[%clk 0:03:00]}  Nf6 {[%clk 0:02:59]} 2. c4 {[%clk 0:03:01]}  g6 {[%clk 0:03:00]} 3. Nc3 {[%clk 0:03:01]}  Bg7 {[%clk 0:03:01]} 4. e4 {[%clk 0:03:01]}  O-O {[%clk 0:03:02]} 5. d4 {[%clk 0:03:02]}  d6 {[%clk 0:03:02]} 6. h3 {[%clk 0:03:02]}  e5 {[%clk 0:03:02]} 7. d5 {[%clk 0:03:02]}  Nh5 {[%clk 0:03:02]} 8. g3 {[%clk 0:03:01]}  Na6 {[%clk 0:03:01]} 9. Be2 {[%clk 0:02:54]}  Nc5 {[%clk 0:02:58]} 10. Be3 {[%clk 0:02:49]}  f5 {[%clk 0:02:49]} 11. exf5 {[%clk 0:02:50]}  gxf5 {[%clk 0:02:49]} 12. Nh4 {[%clk 0:02:45]}  Nf4 {[%clk 0:02:28]} 13. gxf4 {[%clk 0:02:45]}  Qxh4 {[%clk 0:02:27]} 14. Rg1 {[%clk 0:02:45]}  Kh8 {[%clk 0:02:24]} 15. Qd2 {[%clk 0:02:20]}  Ne4 {[%clk 0:02:16]} 16. Nxe4 {[%clk 0:02:12]}  fxe4 {[%clk 0:02:16]} 17. Rxg7 {[%clk 0:02:13]}  Kxg7 {[%clk 0:02:16]} 18. fxe5 {[%clk 0:02:13]}  dxe5 {[%clk 0:02:12]} 19. O-O-O {[%clk 0:02:13]}  Qf6 {[%clk 0:01:52]} 20. c5 {[%clk 0:01:52]}  Bf5 {[%clk 0:01:50]} 21. Qb4 {[%clk 0:01:33]}  b6 {[%clk 0:01:45]} 22. c6 {[%clk 0:01:33]}  Rad8 {[%clk 0:01:35]} 23. Qc3 {[%clk 0:01:28]}  Bg6 {[%clk 0:01:29]} 24. Bc4 {[%clk 0:01:09]}  Rd6 {[%clk 0:01:15]} 25. b3 {[%clk 0:01:07]}  Rfd8 {[%clk 0:01:01]} 26. h4 {[%clk 0:01:03]}  h6 {[%clk 0:00:51]} 27. Rg1 {[%clk 0:01:03]}  Kh7 {[%clk 0:00:49]} 28. h5 {[%clk 0:00:57]}  Bf5 {[%clk 0:00:41]} 29. Kb2 {[%clk 0:00:55]}  a5 {[%clk 0:00:35]} 30. Qc1 {[%clk 0:00:29]}  Rxd5 {[%clk 0:00:27]} 31. Bxd5 {[%clk 0:00:25]}  Rxd5 {[%clk 0:00:28]} 32. Qc4 {[%clk 0:00:21]}  Qd6 {[%clk 0:00:23]} 33. Rc1 {[%clk 0:00:17]}  Kg7 {[%clk 0:00:18]} 34. Qc3 {[%clk 0:00:17]}  Rd3 {[%clk 0:00:16]} 35. Qc4 {[%clk 0:00:15]}  Qd5 {[%clk 0:00:12]} 36. Qc2 {[%clk 0:00:15]}  Kf7 {[%clk 0:00:12]} 37. Rg1 {[%clk 0:00:15]}  a4 {[%clk 0:00:12]} 38. bxa4 {[%clk 0:00:14]}  Rd4 {[%clk 0:00:08]} 39. Ka1 {[%clk 0:00:13]}  Rc4 {[%clk 0:00:06]} 40. Qb3 {[%clk 0:00:14]}  Qxc6 {[%clk 0:00:04]} 41. Bxh6 {[%clk 0:00:10]}  Be6 {[%clk 0:00:02]} 42. Qb2 {[%clk 0:00:09]} 1-0


[Site "https://www.chess.com"]

[Event "Titled Tuesday Blitz May 2 Late 2023"]
[White "Indjic, Aleksandar"]
[Black "Kleiman, Jake"]
[WhiteFideId "911925"]
[BlackFideId "2020041"]
[WhiteElo "2614"]
[BlackElo "2399"]
[Result "1-0"]
[Round "07"]
[TimeControl "180+2"]
[Date "2023.05.02"]
[WhiteClock "0:00:15"]
[BlackClock "0:00:07"]

1. d4 {[%clk 0:02:54]}  Nf6 {[%clk 0:02:59]} 2. Nf3 {[%clk 0:02:54]}  e6 {[%clk 0:02:59]} 3. Bg5 {[%clk 0:02:54]}  h6 {[%clk 0:02:59]} 4. Bh4 {[%clk 0:02:52]}  d6 {[%clk 0:02:58]} 5. Nbd2 {[%clk 0:02:50]}  g5 {[%clk 0:02:58]} 6. Bg3 {[%clk 0:02:50]}  Nh5 {[%clk 0:02:59]} 7. e4 {[%clk 0:02:49]}  Bg7 {[%clk 0:02:59]} 8. c3 {[%clk 0:02:50]}  Nd7 {[%clk 0:02:59]} 9. Nc4 {[%clk 0:02:49]}  Qe7 {[%clk 0:02:56]} 10. Nfd2 {[%clk 0:02:49]}  Nxg3 {[%clk 0:02:55]} 11. hxg3 {[%clk 0:02:50]}  b6 {[%clk 0:02:45]} 12. a4 {[%clk 0:02:48]}  a6 {[%clk 0:02:44]} 13. Ne3 {[%clk 0:02:48]}  Bb7 {[%clk 0:02:44]} 14. Bd3 {[%clk 0:02:41]}  c5 {[%clk 0:02:17]} 15. d5 {[%clk 0:02:40]}  Nf6 {[%clk 0:01:54]} 16. Ndc4 {[%clk 0:02:33]}  Qc7 {[%clk 0:01:52]} 17. Qb3 {[%clk 0:01:59]}  Nd7 {[%clk 0:01:38]} 18. f4 {[%clk 0:01:52]}  O-O-O {[%clk 0:01:29]} 19. O-O-O {[%clk 0:01:43]}  Kb8 {[%clk 0:01:26]} 20. Bc2 {[%clk 0:01:38]}  gxf4 {[%clk 0:01:01]} 21. gxf4 {[%clk 0:01:35]}  e5 {[%clk 0:01:01]} 22. Nf5 {[%clk 0:01:34]}  Bf8 {[%clk 0:01:02]} 23. g3 {[%clk 0:01:31]}  Ka7 {[%clk 0:01:01]} 24. Rdf1 {[%clk 0:01:25]}  Rg8 {[%clk 0:00:58]} 25. Bd3 {[%clk 0:01:22]}  Rg6 {[%clk 0:00:57]} 26. Be2 {[%clk 0:00:56]}  Re8 {[%clk 0:00:54]} 27. Bh5 {[%clk 0:00:55]}  exf4 {[%clk 0:00:35]} 28. gxf4 {[%clk 0:00:54]}  Rxe4 {[%clk 0:00:35]} 29. Bxg6 {[%clk 0:00:53]}  fxg6 {[%clk 0:00:36]} 30. Nfe3 {[%clk 0:00:53]}  Nf6 {[%clk 0:00:33]} 31. Rd1 {[%clk 0:00:53]}  Rxf4 {[%clk 0:00:29]} 32. Rhf1 {[%clk 0:00:47]}  g5 {[%clk 0:00:25]} 33. Qc2 {[%clk 0:00:42]}  Qd7 {[%clk 0:00:22]} 34. Qg6 {[%clk 0:00:24]}  Qe7 {[%clk 0:00:10]} 35. Rxf4 {[%clk 0:00:22]}  gxf4 {[%clk 0:00:10]} 36. Nf5 {[%clk 0:00:22]}  Qe4 {[%clk 0:00:10]} 37. Qxf6 {[%clk 0:00:21]}  Qxc4 {[%clk 0:00:09]} 38. Qxf8 {[%clk 0:00:21]}  f3 {[%clk 0:00:08]} 39. Nxd6 {[%clk 0:00:20]}  Qxa4 {[%clk 0:00:06]} 40. Qxf3 {[%clk 0:00:14]}  Qa1+ {[%clk 0:00:06]} 41. Kc2 {[%clk 0:00:14]}  Qa4+ {[%clk 0:00:07]} 42. Kb1 {[%clk 0:00:15]} 1-0


[Site "https://www.chess.com"]

[Event "Titled Tuesday Blitz May 2 Late 2023"]
[White "Wieczorek, Oskar"]
[Black "Muradli, Mahammad"]
[WhiteFideId "1133950"]
[BlackFideId "13409301"]
[WhiteElo "2418"]
[BlackElo "2558"]
[Result "0-1"]
[Round "07"]
[TimeControl "180+2"]
[Date "2023.05.02"]
[WhiteClock "0:00:13"]
[BlackClock "0:00:04"]

1. e4 {[%clk 0:03:00]}  c5 {[%clk 0:02:59]} 2. Nf3 {[%clk 0:03:01]}  d6 {[%clk 0:02:59]} 3. d4 {[%clk 0:03:01]}  cxd4 {[%clk 0:03:00]} 4. Nxd4 {[%clk 0:03:02]}  e6 {[%clk 0:03:01]} 5. c4 {[%clk 0:03:02]}  Nf6 {[%clk 0:02:59]} 6. Nc3 {[%clk 0:03:02]}  a6 {[%clk 0:03:00]} 7. Be2 {[%clk 0:03:03]}  b6 {[%clk 0:02:59]} 8. O-O {[%clk 0:03:03]}  Bb7 {[%clk 0:02:58]} 9. f3 {[%clk 0:03:03]}  Nbd7 {[%clk 0:02:57]} 10. Be3 {[%clk 0:03:03]}  Be7 {[%clk 0:02:58]} 11. Qd2 {[%clk 0:03:04]}  O-O {[%clk 0:02:58]} 12. Rfd1 {[%clk 0:03:04]}  Qc7 {[%clk 0:02:56]} 13. Kh1 {[%clk 0:03:04]}  Rac8 {[%clk 0:02:56]} 14. Rdc1 {[%clk 0:03:03]}  Qb8 {[%clk 0:02:56]} 15. a4 {[%clk 0:03:04]}  a5 {[%clk 0:02:31]} 16. Ncb5 {[%clk 0:02:54]}  Nc5 {[%clk 0:02:28]} 17. Rd1 {[%clk 0:02:52]}  Rfd8 {[%clk 0:02:26]} 18. Qe1 {[%clk 0:02:46]}  g6 {[%clk 0:01:21]} 19. Bg5 {[%clk 0:02:32]}  Kg7 {[%clk 0:01:17]} 20. Qh4 {[%clk 0:02:26]}  h5 {[%clk 0:01:08]} 21. Bf1 {[%clk 0:02:09]}  Rd7 {[%clk 0:00:59]} 22. Re1 {[%clk 0:01:44]}  Ng8 {[%clk 0:00:56]} 23. b3 {[%clk 0:01:34]}  Re8 {[%clk 0:00:49]} 24. Rad1 {[%clk 0:01:33]}  Qd8 {[%clk 0:00:42]} 25. Bxe7 {[%clk 0:01:28]}  Qxe7 {[%clk 0:00:43]} 26. Qg3 {[%clk 0:01:29]}  Red8 {[%clk 0:00:34]} 27. Re3 {[%clk 0:01:18]}  Qf6 {[%clk 0:00:31]} 28. Nxd6 {[%clk 0:01:06]}  h4 {[%clk 0:00:14]} 29. Qh3 {[%clk 0:00:32]}  e5 {[%clk 0:00:14]} 30. N4f5+ {[%clk 0:00:32]}  gxf5 {[%clk 0:00:13]} 31. Nxf5+ {[%clk 0:00:33]}  Kf8 {[%clk 0:00:13]} 32. Rde1 {[%clk 0:00:33]}  Bc8 {[%clk 0:00:11]} 33. Nxh4 {[%clk 0:00:29]}  Rd3 {[%clk 0:00:07]} 34. Qg3 {[%clk 0:00:21]}  Rxe3 {[%clk 0:00:07]} 35. Rxe3 {[%clk 0:00:22]}  Rd1 {[%clk 0:00:05]} 36. Kg1 {[%clk 0:00:23]}  Qd6 {[%clk 0:00:03]} 37. Qf2 {[%clk 0:00:17]}  Ne7 {[%clk 0:00:03]} 38. g4 {[%clk 0:00:16]}  Qd4 {[%clk 0:00:03]} 39. Nf5 {[%clk 0:00:16]}  Bxf5 {[%clk 0:00:03]} 40. gxf5 {[%clk 0:00:17]}  Nc6 {[%clk 0:00:03]} 41. Kg2 {[%clk 0:00:14]}  Nb4 {[%clk 0:00:02]} 42. f6 {[%clk 0:00:12]}  Ke8 {[%clk 0:00:02]} 43. Kg3 {[%clk 0:00:11]}  Rxf1 {[%clk 0:00:02]} 44. Qxf1 {[%clk 0:00:10]}  Qxe3 {[%clk 0:00:02]} 45. Qh3 {[%clk 0:00:11]}  Qf4+ {[%clk 0:00:03]} 46. Kf2 {[%clk 0:00:12]}  Nbd3+ {[%clk 0:00:02]} 47. Ke2 {[%clk 0:00:12]}  Qxf6 {[%clk 0:00:03]} 48. Qc8+ {[%clk 0:00:11]}  Ke7 {[%clk 0:00:03]} 49. Qc7+ {[%clk 0:00:12]}  Kf8 {[%clk 0:00:04]} 50. Qc8+ {[%clk 0:00:12]}  Kg7 {[%clk 0:00:04]} 51. Qg4+ {[%clk 0:00:12]}  Qg6 {[%clk 0:00:05]} 52. Qh4 {[%clk 0:00:12]}  Qg2+ {[%clk 0:00:04]} 53. Ke3 {[%clk 0:00:13]}  Qg1+ {[%clk 0:00:05]} 54. Ke2 {[%clk 0:00:13]}  Nf4+ {[%clk 0:00:04]} 55. Kd2 {[%clk 0:00:13]}  Qd4+ {[%clk 0:00:04]} 0-1


[Site "https://www.chess.com"]

[Event "Titled Tuesday Blitz May 2 Late 2023"]
[White "Osinenko, Anton"]
[Black "Grigoriants, Sergey"]
[WhiteFideId "4158970"]
[BlackFideId "4130804"]
[WhiteElo "2294"]
[BlackElo "2502"]
[Result "0-1"]
[Round "07"]
[TimeControl "180+2"]
[Date "2023.05.02"]
[WhiteClock "0:00:02"]
[BlackClock "0:00:03"]

1. e4 {[%clk 0:03:00]}  c5 {[%clk 0:02:54]} 2. Nf3 {[%clk 0:03:00]}  Nc6 {[%clk 0:02:54]} 3. c3 {[%clk 0:03:00]}  e6 {[%clk 0:02:52]} 4. d4 {[%clk 0:02:55]}  d5 {[%clk 0:02:51]} 5. exd5 {[%clk 0:02:54]}  Qxd5 {[%clk 0:02:50]} 6. Na3 {[%clk 0:02:54]}  Nf6 {[%clk 0:02:48]} 7. Nc2 {[%clk 0:02:48]}  Be7 {[%clk 0:02:39]} 8. Be3 {[%clk 0:02:45]}  Ng4 {[%clk 0:02:30]} 9. Bf4 {[%clk 0:02:45]}  O-O {[%clk 0:02:29]} 10. Be2 {[%clk 0:02:42]}  Rd8 {[%clk 0:02:22]} 11. h3 {[%clk 0:02:25]}  Nf6 {[%clk 0:02:18]} 12. dxc5 {[%clk 0:02:20]}  Qe4 {[%clk 0:02:03]} 13. Qc1 {[%clk 0:02:20]}  Bxc5 {[%clk 0:02:03]} 14. Be3 {[%clk 0:02:21]}  Be7 {[%clk 0:01:35]} 15. O-O {[%clk 0:01:55]}  Nd5 {[%clk 0:01:34]} 16. Rd1 {[%clk 0:01:20]}  Nxe3 {[%clk 0:01:31]} 17. Rxd8+ {[%clk 0:01:21]}  Bxd8 {[%clk 0:01:26]} 18. Nxe3 {[%clk 0:01:22]}  Bb6 {[%clk 0:01:10]} 19. Qc2 {[%clk 0:01:17]}  Qxc2 {[%clk 0:01:00]} 20. Nxc2 {[%clk 0:01:18]}  Bd7 {[%clk 0:00:53]} 21. Rd1 {[%clk 0:01:16]}  Be8 {[%clk 0:00:46]} 22. Nfd4 {[%clk 0:01:10]}  Nxd4 {[%clk 0:00:45]} 23. Nxd4 {[%clk 0:01:11]}  Kf8 {[%clk 0:00:41]} 24. Bf3 {[%clk 0:01:10]}  Rb8 {[%clk 0:00:29]} 25. Kf1 {[%clk 0:01:07]}  Ke7 {[%clk 0:00:29]} 26. Ke2 {[%clk 0:01:03]}  Bd7 {[%clk 0:00:29]} 27. Rd2 {[%clk 0:01:01]}  f5 {[%clk 0:00:29]} 28. g4 {[%clk 0:00:56]}  g6 {[%clk 0:00:29]} 29. Bg2 {[%clk 0:00:40]}  fxg4 {[%clk 0:00:23]} 30. hxg4 {[%clk 0:00:40]}  e5 {[%clk 0:00:24]} 31. Nb3 {[%clk 0:00:32]}  Bxg4+ {[%clk 0:00:24]} 32. Bf3 {[%clk 0:00:33]}  Be6 {[%clk 0:00:16]} 33. Rd1 {[%clk 0:00:29]}  Bc4+ {[%clk 0:00:10]} 34. Ke1 {[%clk 0:00:28]}  Rf8 {[%clk 0:00:11]} 35. Nd2 {[%clk 0:00:26]}  Bxa2 {[%clk 0:00:09]} 36. Ke2 {[%clk 0:00:24]}  Be6 {[%clk 0:00:08]} 37. Rh1 {[%clk 0:00:20]}  h5 {[%clk 0:00:08]} 38. Rg1 {[%clk 0:00:20]}  Bf5 {[%clk 0:00:09]} 39. Bxb7 {[%clk 0:00:19]}  h4 {[%clk 0:00:06]} 40. Be4 {[%clk 0:00:19]}  h3 {[%clk 0:00:06]} 41. Rh1 {[%clk 0:00:16]}  Bg4+ {[%clk 0:00:04]} 42. f3 {[%clk 0:00:16]}  Bd7 {[%clk 0:00:04]} 43. Bxg6 {[%clk 0:00:16]}  Rg8 {[%clk 0:00:04]} 44. Bh5 {[%clk 0:00:12]}  Rg2+ {[%clk 0:00:05]} 45. Ke1 {[%clk 0:00:10]}  h2 {[%clk 0:00:05]} 46. Nf1 {[%clk 0:00:09]}  Bg1 {[%clk 0:00:04]} 47. b4 {[%clk 0:00:08]}  Rb2 {[%clk 0:00:04]} 48. Nd2 {[%clk 0:00:06]}  Bc6 {[%clk 0:00:03]} 49. Ke2 {[%clk 0:00:05]}  Rc2 {[%clk 0:00:03]} 50. Kd3 {[%clk 0:00:05]}  Rb2 {[%clk 0:00:03]} 51. Nc4 {[%clk 0:00:02]}  Bb5 {[%clk 0:00:03]} 0-1


[Site "https://www.chess.com"]

[Event "Titled Tuesday Blitz May 2 Late 2023"]
[White "Rosen, Eric"]
[Black "Yoo, Christopher Woojin"]
[WhiteFideId "2032562"]
[BlackFideId "30909694"]
[WhiteElo "2331"]
[BlackElo "2519"]
[Result "1/2-1/2"]
[Round "07"]
[TimeControl "180+2"]
[Date "2023.05.02"]
[WhiteClock "0:00:09"]
[BlackClock "0:00:05"]

1. d4 {[%clk 0:03:00]}  d5 {[%clk 0:02:58]} 2. Bf4 {[%clk 0:03:01]}  Nf6 {[%clk 0:02:58]} 3. e3 {[%clk 0:03:01]}  c5 {[%clk 0:02:58]} 4. Nf3 {[%clk 0:03:01]}  Nc6 {[%clk 0:02:59]} 5. Nbd2 {[%clk 0:03:02]}  Bg4 {[%clk 0:02:58]} 6. c3 {[%clk 0:03:02]}  cxd4 {[%clk 0:02:51]} 7. exd4 {[%clk 0:03:01]}  e6 {[%clk 0:02:49]} 8. Bb5 {[%clk 0:02:58]}  Bd6 {[%clk 0:02:46]} 9. Bxd6 {[%clk 0:02:57]}  Qxd6 {[%clk 0:02:47]} 10. O-O {[%clk 0:02:57]}  O-O {[%clk 0:02:47]} 11. a4 {[%clk 0:02:53]}  Ne4 {[%clk 0:02:39]} 12. h3 {[%clk 0:02:50]}  Nxd2 {[%clk 0:02:37]} 13. Qxd2 {[%clk 0:02:39]}  Bxf3 {[%clk 0:02:37]} 14. gxf3 {[%clk 0:02:40]}  Na5 {[%clk 0:02:32]} 15. Qg5 {[%clk 0:02:34]}  f5 {[%clk 0:02:29]} 16. Qg3 {[%clk 0:02:08]}  f4 {[%clk 0:02:25]} 17. Qg4 {[%clk 0:02:07]}  Rf6 {[%clk 0:02:01]} 18. Kh2 {[%clk 0:02:07]}  Rg6 {[%clk 0:01:54]} 19. Qh4 {[%clk 0:02:03]}  Rh6 {[%clk 0:01:54]} 20. Qg4 {[%clk 0:02:03]}  a6 {[%clk 0:01:17]} 21. Bd3 {[%clk 0:02:01]}  Nc6 {[%clk 0:01:17]} 22. Rg1 {[%clk 0:01:52]}  Qe7 {[%clk 0:01:17]} 23. Rae1 {[%clk 0:01:51]}  Rf8 {[%clk 0:01:15]} 24. b4 {[%clk 0:01:42]}  Qf7 {[%clk 0:00:56]} 25. b5 {[%clk 0:01:26]}  axb5 {[%clk 0:00:57]} 26. axb5 {[%clk 0:01:27]}  Ne7 {[%clk 0:00:55]} 27. Re5 {[%clk 0:01:27]}  Kh8 {[%clk 0:00:51]} 28. Rge1 {[%clk 0:01:20]}  Nf5 {[%clk 0:00:45]} 29. Bxf5 {[%clk 0:01:15]}  exf5 {[%clk 0:00:45]} 30. Rxf5 {[%clk 0:01:13]}  Rf6 {[%clk 0:00:41]} 31. Rxf6 {[%clk 0:01:04]}  Qxf6 {[%clk 0:00:42]} 32. Re6 {[%clk 0:01:00]}  Qf7 {[%clk 0:00:36]} 33. Rd6 {[%clk 0:00:54]}  h5 {[%clk 0:00:24]} 34. Qg5 {[%clk 0:00:47]}  Rc8 {[%clk 0:00:13]} 35. Rxd5 {[%clk 0:00:29]}  Rxc3 {[%clk 0:00:13]} 36. Qxh5+ {[%clk 0:00:15]}  Qxh5 {[%clk 0:00:13]} 37. Rxh5+ {[%clk 0:00:16]}  Kg8 {[%clk 0:00:14]} 38. Kg2 {[%clk 0:00:16]}  Rb3 {[%clk 0:00:12]} 39. Rd5 {[%clk 0:00:17]}  Kh7 {[%clk 0:00:12]} 40. Rf5 {[%clk 0:00:13]}  Kg6 {[%clk 0:00:12]} 41. Rc5 {[%clk 0:00:06]}  Kf6 {[%clk 0:00:12]} 42. h4 {[%clk 0:00:06]}  g6 {[%clk 0:00:09]} 43. Re5 {[%clk 0:00:05]}  Rb4 {[%clk 0:00:09]} 44. Rd5 {[%clk 0:00:03]}  Ke6 {[%clk 0:00:07]} 45. Re5+ {[%clk 0:00:04]}  Kf6 {[%clk 0:00:07]} 46. Rc5 {[%clk 0:00:02]}  Ke6 {[%clk 0:00:05]} 47. Rg5 {[%clk 0:00:03]}  Kf6 {[%clk 0:00:04]} 48. Rd5 {[%clk 0:00:02]}  Ke7 {[%clk 0:00:03]} 49. Kh3 {[%clk 0:00:02]}  Ke6 {[%clk 0:00:03]} 50. Re5+ {[%clk 0:00:03]}  Kf6 {[%clk 0:00:03]} 51. Rd5 {[%clk 0:00:03]}  Ke6 {[%clk 0:00:03]} 52. Rc5 {[%clk 0:00:03]}  Rxd4 {[%clk 0:00:02]} 53. Rc7 {[%clk 0:00:03]}  b6 {[%clk 0:00:02]} 54. Rc6+ {[%clk 0:00:03]}  Kf5 {[%clk 0:00:02]} 55. Rxb6 {[%clk 0:00:04]}  Rd3 {[%clk 0:00:02]} 56. Kg2 {[%clk 0:00:04]}  Rb3 {[%clk 0:00:02]} 57. Rb7 {[%clk 0:00:04]}  Kf6 {[%clk 0:00:03]} 58. Rb6+ {[%clk 0:00:04]}  Kg7 {[%clk 0:00:01]} 59. Rb8 {[%clk 0:00:04]}  Kh6 {[%clk 0:00:01]} 60. b6 {[%clk 0:00:04]}  Kg7 {[%clk 0:00:02]} 61. b7 {[%clk 0:00:04]}  Rb1 {[%clk 0:00:02]} 62. Kh3 {[%clk 0:00:03]}  Rb2 {[%clk 0:00:02]} 63. Kg4 {[%clk 0:00:04]}  Rb4 {[%clk 0:00:02]} 64. Kg5 {[%clk 0:00:03]}  Kh7 {[%clk 0:00:03]} 65. Kf6 {[%clk 0:00:03]}  Rb2 {[%clk 0:00:03]} 66. Ke5 {[%clk 0:00:03]}  Rb4 {[%clk 0:00:03]} 67. Kd5 {[%clk 0:00:02]}  Rb1 {[%clk 0:00:03]} 68. Kd4 {[%clk 0:00:02]}  Rb2 {[%clk 0:00:03]} 69. Ke4 {[%clk 0:00:02]}  Rb4+ {[%clk 0:00:03]} 70. Ke5 {[%clk 0:00:03]}  Kg7 {[%clk 0:00:03]} 71. Ke6 {[%clk 0:00:02]}  Rb1 {[%clk 0:00:04]} 72. Kd5 {[%clk 0:00:03]}  Rb2 {[%clk 0:00:03]} 73. Kc6 {[%clk 0:00:03]}  Rc2+ {[%clk 0:00:04]} 74. Kb5 {[%clk 0:00:03]}  Rb2+ {[%clk 0:00:04]} 75. Kc4 {[%clk 0:00:04]}  Rb1 {[%clk 0:00:04]} 76. Kc3 {[%clk 0:00:04]}  Kh7 {[%clk 0:00:02]} 77. Kc2 {[%clk 0:00:04]}  Rb4 {[%clk 0:00:03]} 78. Kd2 {[%clk 0:00:05]}  Kg7 {[%clk 0:00:02]} 79. Ke2 {[%clk 0:00:06]}  Rb2+ {[%clk 0:00:02]} 80. Kf1 {[%clk 0:00:06]}  Rb1+ {[%clk 0:00:03]} 81. Kg2 {[%clk 0:00:07]}  Rb2 {[%clk 0:00:04]} 82. Kh3 {[%clk 0:00:07]}  Rb1 {[%clk 0:00:04]} 83. Kg4 {[%clk 0:00:08]}  Rb4 {[%clk 0:00:04]} 84. Kg5 {[%clk 0:00:07]}  Kh7 {[%clk 0:00:05]} 85. Kf6 {[%clk 0:00:08]}  Rb6+ {[%clk 0:00:04]} 86. Kf7 {[%clk 0:00:08]}  Rb2 {[%clk 0:00:02]} 87. Kf8 {[%clk 0:00:08]}  Rb1 {[%clk 0:00:02]} 88. Ke8 {[%clk 0:00:08]}  Rb2 {[%clk 0:00:02]} 89. Kd8 {[%clk 0:00:09]}  Rb1 {[%clk 0:00:02]} 90. Kc8 {[%clk 0:00:09]}  Rc1+ {[%clk 0:00:02]} 91. Kd8 {[%clk 0:00:10]}  Rb1 {[%clk 0:00:03]} 92. Ke8 {[%clk 0:00:10]}  Re1+ {[%clk 0:00:03]} 93. Kf8 {[%clk 0:00:10]}  Rb1 {[%clk 0:00:03]} 94. Re8 {[%clk 0:00:09]}  Rxb7 {[%clk 0:00:03]} 95. Re7+ {[%clk 0:00:09]}  Rxe7 {[%clk 0:00:04]} 96. Kxe7 {[%clk 0:00:10]}  Kh6 {[%clk 0:00:03]} 97. Kf6 {[%clk 0:00:10]}  Kh5 {[%clk 0:00:03]} 98. Kg7 {[%clk 0:00:10]}  g5 {[%clk 0:00:03]} 99. hxg5 {[%clk 0:00:10]}  Kxg5 {[%clk 0:00:04]} 100. Kf7 {[%clk 0:00:10]}  Kf5 {[%clk 0:00:04]} 101. Ke7 {[%clk 0:00:11]}  Ke5 {[%clk 0:00:05]} 102. Kd7 {[%clk 0:00:10]}  Kd5 {[%clk 0:00:05]} 103. Kc7 {[%clk 0:00:09]}  Kc5 {[%clk 0:00:05]} 104. Kd7 {[%clk 0:00:10]}  Kd5 {[%clk 0:00:06]} 105. Kc7 {[%clk 0:00:08]}  Kc5 {[%clk 0:00:06]} 106. Kb7 {[%clk 0:00:09]}  Kb5 {[%clk 0:00:06]} 107. Ka7 {[%clk 0:00:07]}  Ka5 {[%clk 0:00:06]} 108. Kb7 {[%clk 0:00:08]}  Kb5 {[%clk 0:00:05]} 109. Kc7 {[%clk 0:00:09]}  Kc5 {[%clk 0:00:05]} 1/2-1/2


[Site "https://www.chess.com"]